Cogmind - Beta 14 @@@ ROGUE MODE // 2024.08.27 @ 22:13:13 Player: THN-L0C Result: Self-destructed Performance ------------- Evolutions (0) 0 Regions Visited (5) 1000 Robots Destroyed (35) 175 Value Destroyed (935) 935 Prototype IDs (11) 220 Alien Tech Used (0) 0 Bonus (300) 300 TOTAL SCORE: 2630 Bonus ------- Registered with UFD 300 Cogmind --------- Core Integrity 31/250 Matter 300/300 Energy 160/160 System Corruption 0% Temperature Cool (0) Movement Walking (330) Ox3 Location -8/Scraptown Parts ------- > --- POWER (1) -------- Light Nuclear Core > --- PROPULSION (2) --- Armored Treads Improved Aluminum Leg > --- UTILITY (2) ------ Large Storage Unit Hardened Medium Armor Plating > --- WEAPON (2) ------- Ion Cannon Ripper > --- INVENTORY (15) --- Medium Matter Pod (100) Seismic Detector Power Shielding Propulsion Shielding Gun Armor Makeshift Hacking Suite Makeshift System Shield Riot Gun Pulse Rifle Beamcaster Barrage Gun Subdweller Shrapnel Launcher Multitool Makeshift Hammer Peak State ------------ > --- POWER ------------ Light Angular Momentum Engine > --- PROPULSION ------- Spiked Treads Armored Treads > --- UTILITY ---------- Large Storage Unit Makeshift Light Armor Plating > --- WEAPON ----------- Beamcaster Ripper > --- INVENTORY -------- Subdweller Power Source Light Nuclear Core Medium Matter Pod Seismic Detector Power Shielding Propulsion Shielding Gun Armor Makeshift Hacking Suite Shock Rifle Riot Gun Pulse Rifle Ion Cannon Barrage Gun Assault Cannon Makeshift Hammer [Rating: 28] Favorites ----------- Power Light Nuclear Core Engine Subdweller Power Source Power Core Light Nuclear Core Propulsion Armored Treads Treads Armored Treads Leg Improved Aluminum Leg Wheel Subdweller Monowheel Utility Large Storage Unit Device Seismic Detector Storage Large Storage Unit Protection Hardened Medium Armor Plating Weapon Ion Cannon Energy Gun Beamcaster Energy Cannon Ion Cannon Ballistic Gun Assault Rifle Ballistic Cannon Assault Cannon Launcher Rocket Launcher Special Weapon Mining Laser Slashing Weapon Ripper Build | -11 -10 -10 -10 -8 -8 ------- Run | Yrd Mat Min Sub Rec Scr Slots Evolved . | . . . . . . Power . | . . . . . . Propulsion . | . . . . . . Utility . | . . . . . . Weapon . | . . . . . . Parts Attached 79 | 8 7 6 55 1 2 Power 8 | 1 1 1 5 . . Engine 5 | 1 . . 4 . . Core 3 | . 1 1 1 . . Reactor . | . . . . . . Propulsion 13 | 2 1 1 7 1 1 Treads 6 | 2 1 1 1 . 1 Leg 1 | . . . . 1 . Wheel 6 | . . . 6 . . Hover . | . . . . . . Flight . | . . . . . . Utility 26 | 2 2 1 20 . 1 Device 11 | 1 . 1 9 . . Storage 2 | 1 1 . . . . Processor . | . . . . . . Hackware . | . . . . . . Protection 13 | . 1 . 11 . 1 Artifact . | . . . . . . Weapon 32 | 3 3 3 23 . . Energy Gun 2 | . . . 2 . . Energy Cannon 1 | . . . 1 . . Ballistic Gun 10 | 3 2 2 3 . . Ballistic Cannon 7 | . . . 7 . . Launcher 3 | . . 1 2 . . Special Weapon 1 | . 1 . . . . Impact Weapon . | . . . . . . Slashing Weapon 8 | . . . 8 . . Piercing Weapon . | . . . . . . Special Melee Weapon . | . . . . . . Unidentified Prototypes . | . . . . . . Parts Lost 10 | . 2 . 8 . . Power 2 | . . . 2 . . Propulsion 3 | . . . 3 . . Utility 2 | . 1 . 1 . . Weapon 3 | . 1 . 2 . . Highest Loss Streak 3 | . 1 . 3 . . To Critical Strikes . | . . . . . . Average Slot Usage (%) 99 | . 99 100 99 93 100 Engine 4 | . 9 . 8 . . Core 9 | . 4 14 4 14 14 Treads 18 | . 28 28 20 . 10 Leg 5 | . . . . 7 14 Wheel 4 | . . . 6 14 3 Device 4 | . 8 . 9 . . Storage 14 | . 14 14 14 14 14 Protection 9 | . 5 14 4 14 14 Energy Gun 3 | . . . 8 . . Energy Cannon 7 | . . . 3 14 14 Ballistic Gun 7 | . 27 27 4 . . Ballistic Cannon 1 | . . . 4 . . Slashing Weapon 7 | . . . 5 14 14 Peak Build Rating 28 | 7 9 16 28 23 24 Average Rating 19 | 5 7 12 21 22 23 On Entrance 12 | . 7 9 16 21 23 Naked Turns . | . . . . . . Heaviest Build 43 | 15 32 37 43 38 42 Greatest Support 40 | 40 40 40 40 20 13 Greatest Overweight (x) 13 | 2 . . 13 12 3 Average Overweight (x) . | . . . . 1 2 Largest Inventory Capacity 15 | 8 15 15 15 15 15 Average Capacity 14 | 7 9 15 15 15 15 Most Carried 15 | 2 8 15 15 15 15 Average Carried 13 | 1 6 13 14 15 14 Final Capacity 15 | 8 15 15 15 15 15 Final Carried 15 | 2 8 15 15 15 14 Class Distribution -------------------- 89% | Mutant 9% | Scavenger-Mutant Dominant Class ---------------- Mutant | -10/Materials Mutant | -10/Mines Mutant | -10/Subcaves Mutant | -8/Recycling Mutant | -8/Scraptown Resources | -11 -10 -10 -10 -8 -8 ----------- Run | Yrd Mat Min Sub Rec Scr Matter Collected 1630 | 153 382 158 827 77 33 Remotely . | . . . . . . Salvage Created 1179 | 59 485 70 565 . . Parts 97 | 9 42 6 40 . . Haulers Intercepted 1 | . 1 . . . . Recyclers Shooed 1 | . . 1 . . . Parts Field Recycled . | . . . . . . Retrieved Matter . | . . . . . . Parts Self-Destructed 11 | . . . 11 . . Prevented . | . . . . . . Kills | -11 -10 -10 -10 -8 -8 ------- Run | Yrd Mat Min Sub Rec Scr Combat Hostiles Destroyed 28 | . 13 1 14 . . Guns 19 | . 13 1 5 . . Cannons 7 | . . . 7 . . AOE 2 | . . . 2 . . Classes Destroyed 8 | 1 5 1 1 . . Worker 1 | . 1 . . . . Builder 1 | . 1 . . . . Tunneler 4 | 3 . 1 . . . Hauler 1 | . 1 . . . . Swarmer 7 | . 6 . 1 . . Grunt 7 | . 7 . . . . Sentry 1 | . . 1 . . . Subdweller 13 | . . . 13 . . Best Kill Streak 4 | 2 4 1 2 . . Combat Bots Only 4 | . 4 1 2 . . Max Kills in Single Turn 2 | 1 1 1 2 . . Gunslinging . | . . . . . . Exploded 2 | . . . 2 . . Melee . | . . . . . . Uniques/NPCs Destroyed . | . . . . . . Combat | -11 -10 -10 -10 -8 -8 -------- Run | Yrd Mat Min Sub Rec Scr Hostile Shots Fired 169 | . 57 2 110 . . Missed 44 | . 15 . 29 . . Damage Taken 1994 | . 453 31 1510 . . Core 219 | . 59 . 160 . . Absorbed by Shields . | . . . . . . Redirected to Shielding 6 | . . . 6 . . Core Remaining (%) 100 | 100 . . . . . Volleys Fired 141 | 3 50 5 83 . . Largest 2 | 2 2 2 2 . . Hottest 135 | 40 100 40 135 . . Shots Fired 204 | 6 67 8 123 . . Gun 158 | 6 62 8 82 . . Cannon 32 | . . . 32 . . Launcher 9 | . . . 9 . . Special 5 | . 5 . . . . Kinetic 143 | 6 62 8 67 . . Thermal 53 | . 5 . 48 . . Explosive 8 | . . . 8 . . Electromagnetic . | . . . . . . Robot Hit Streak 28 | 2 8 8 28 . . Robot Miss Streak 3 | 1 3 1 2 . . Penetration Max . | . . . . . . Secondary Targets . | . . . . . . Shots Hit Robots 153 | 4 42 7 100 . . Core Hits 64 | 3 26 3 32 . . Critical Kills . | . . . . . . Critical Parts Destroyed . | . . . . . . Critical Strikes 4 | . . . 4 . . Burn 4 | . . . 4 . . Melee Attacks 63 | . . . 63 . . Impact . | . . . . . . Slashing 63 | . . . 63 . . Piercing . | . . . . . . Sneak Attacks . | . . . . . . Combat Hostiles . | . . . . . . Follow-up Attacks . | . . . . . . Damage Inflicted 3196 | 49 560 90 2497 . . Guns 1906 | 49 545 90 1222 . . Cannons 694 | . . . 694 . . Explosions 266 | . . . 266 . . Melee 315 | . . . 315 . . Ramming 15 | . 15 . . . . Kinetic 1739 | 49 545 90 1055 . . Thermal 862 | . . . 862 . . Explosive 265 | . . . 265 . . Electromagnetic . | . . . . . . Impact . | . . . . . . Slashing 315 | . . . 315 . . Piercing . | . . . . . . Highest Corruption . | . . . . . . Average Corruption . | . . . . . . Corruption Purged . | . . . . . . Corruption Blocked . | . . . . . . Overload Shots . | . . . . . . Overflow Damage 16 | . . . 16 . . Projectiles . | . . . . . . Explosions 16 | . . . 16 . . Melee . | . . . . . . Knockbacks 5 | . . . 5 . . Impact . | . . . . . . Kinetic 5 | . . . 5 . . Secondary . | . . . . . . Self-Inflicted Damage 46 | . . . 46 . . Shots 1 | . . . 1 . . Rammed 2 | . 2 . . . . Targets Rammed 2 | . 2 . . . . Kicked . | . . . . . . Crushed . | . . . . . . Highest Temperature 100 | . 100 7 99 . . Average Temperature 32 | . 28 4 36 . . Received Heat Transfer 357 | . 174 9 174 . . Siege Activations . | . . . . . . Robots Corrupted . | . . . . . . Combat Hostiles . | . . . . . . Parts Fried . | . . . . . . Impact Corruptions . | . . . . . . Robots Melted . | . . . . . . Combat Hostiles . | . . . . . . Parts Melted 1 | . . . 1 . . Heat Transferred 1813 | . . . 1813 . . Parts Sabotaged . | . . . . . . Parts Stolen . | . . . . . . Parts Stripped . | . . . . . . Power Chain Reactions . | . . . . . . Alert | -11 -10 -10 -10 -8 -8 ------- Run | Yrd Mat Min Sub Rec Scr Peak Influence 208 | 15 208 38 . 36 . Initial 38 | . 9 38 . 36 . Average 43 | 5 82 12 . 36 . Maximum Alert Level 1 | . 1 . . . . Low Security (%) 97 | 100 93 100 . 100 . Level 1 2 | . 6 . . . . Level 2 . | . . . . . . Level 3 . | . . . . . . Level 4 . | . . . . . . Level 5 . | . . . . . . High Security . | . . . . . . Max Security . | . . . . . . Squads Dispatched 3 | . 2 1 . . . Investigation 3 | . 2 1 . . . Extermination . | . . . . . . Reinforcement . | . . . . . . Assault . | . . . . . . Garrison . | . . . . . . Intercept . | . . . . . . Searches Triggered . | . . . . . . Construction Impeded . | . . . . . . Haulers Reinforced . | . . . . . . Active Scanning Responses . | . . . . . . Cargo Convoy Interrupts . | . . . . . . Stealth | -11 -10 -10 -10 -8 -8 --------- Run | Yrd Mat Min Sub Rec Scr Distress Signals . | . . . . . . Communications Jammed . | . . . . . . Distress Signals . | . . . . . . Times Spotted 45 | . 24 2 19 . . Peak Tracking Total 4 | . 4 2 2 . . Tactical Retreats 6 | . 2 . 4 . . Traps | -11 -10 -10 -10 -8 -8 ------- Run | Yrd Mat Min Sub Rec Scr Traps Triggered 2 | . 1 . 1 . . Indirectly . | . . . . . . Trap Hack Attempts . | . . . . . . Triggered . | . . . . . . Disarmed . | . . . . . . Reprogrammed . | . . . . . . Reused . | . . . . . . Traps Extracted . | . . . . . . Installed . | . . . . . . Triggered . | . . . . . . Machines | -11 -10 -10 -10 -8 -8 ---------- Run | Yrd Mat Min Sub Rec Scr Machines Disabled 3 | . 1 . 2 . . Max in Single Turn 1 | . 1 . 1 . . Machines Repaired . | . . . . . . Machines Dismantled . | . . . . . . Machines Sabotaged . | . . . . . . Overloaded Fab Kills . | . . . . . . Hacking | -11 -10 -10 -10 -8 -8 --------- Run | Yrd Mat Min Sub Rec Scr Machines Accessed 14 | . 8 1 2 . 3 Terminals 8 | . 8 . . . . Fabricators . | . . . . . . Repair Stations . | . . . . . . Recycling Units . | . . . . . . Scanalyzers . | . . . . . . Garrison Access . | . . . . . . Total Hacks 48 | . 27 1 4 . 16 Successful 34 | . 13 1 4 . 16 Failed 14 | . 14 . . . . Catastrophic 1 | . 1 . . . . Database Lockouts . | . . . . . . Manual 23 | . 23 . . . . Terminals 27 | . 27 . . . . Fabricators . | . . . . . . Repair Stations . | . . . . . . Recycling Units . | . . . . . . Scanalyzers . | . . . . . . Garrison Access . | . . . . . . Terminal Hacks 26 | . 5 1 4 . 16 Record 15 | . 1 . 3 . 11 Robot Analysis 7 | . 2 . . . 5 Open Door 1 | . . 1 . . . Locate Traps 1 | . 1 . . . . Hauler Manifests 1 | . 1 . . . . Derelict Proto ID Bank 1 | . . . 1 . . Fabricator Hacks . | . . . . . . Repair Station Hacks . | . . . . . . Recycling Unit Hacks . | . . . . . . Scanalyzer . | . . . . . . Garrison Access Hacks . | . . . . . . Unauthorized Hacks 8 | . 8 . . . . Terminals 8 | . 8 . . . . Botnet 3 | . 3 . . . . Skim 5 | . 5 . . . . Fabricators . | . . . . . . Repair Stations . | . . . . . . Recycling Units . | . . . . . . Scanalyzers . | . . . . . . Garrison Access . | . . . . . . Data Cores Recovered . | . . . . . . Used . | . . . . . . Hacking Detections 7 | . 7 . . . . Full Trace Events 2 | . 2 . . . . Feedback Events . | . . . . . . Feedback Blocked . | . . . . . . Robot Schematics Acquired . | . . . . . . Robots Built . | . . . . . . Authchips . | . . . . . . Time . | . . . . . . Total Robot Build Rating . | . . . . . . Part Schematics Acquired . | . . . . . . Parts Built . | . . . . . . Authchips . | . . . . . . Time . | . . . . . . Total Part Build Rating . | . . . . . . Parts Repaired . | . . . . . . Time . | . . . . . . Parts Recycled . | . . . . . . Recycled Matter . | . . . . . . Retrieved Matter . | . . . . . . Retrieved Components . | . . . . . . Parts Scanalyzed . | . . . . . . Part Schematics Acquired . | . . . . . . Parts Damaged . | . . . . . . Bothacking | -11 -10 -10 -10 -8 -8 ------------ Run | Yrd Mat Min Sub Rec Scr Used RIF Installer . | . . . . . . Robots Hacked . | . . . . . . Non-combat . | . . . . . . Combat . | . . . . . . Robot Hacks Applied . | . . . . . . Relay Couplers Released . | . . . . . . Fabnet Peak Effective % . | . . . . . . Robots Rewired . | . . . . . . Allies Hacked . | . . . . . . Hacks Repelled . | . . . . . . Allies | -11 -10 -10 -10 -8 -8 -------- Run | Yrd Mat Min Sub Rec Scr Total Allies . | . . . . . . Largest Group . | . . . . . . Highest-Rated Group . | . . . . . . Highest-Rated Ally . | . . . . . . Total Orders . | . . . . . . Ally Attacks . | . . . . . . Total Damage . | . . . . . . Kills . | . . . . . . Allies Corrupted . | . . . . . . Allies Melted . | . . . . . . Intel | -11 -10 -10 -10 -8 -8 ------- Run | Yrd Mat Min Sub Rec Scr Robot Analysis Total 7 | . 2 . . . 5 Derelict Logs Recovered 6 | . . 2 2 . 2 Drone Launches . | . . . . . . Drone Recoveries . | . . . . . . Exploration | -11 -10 -10 -10 -8 -8 ------------- Run | Yrd Mat Min Sub Rec Scr Turns Passed 10851 | 90 1042 1180 4196 122 4221 Spaces Moved 5184 | 46 540 664 2440 94 1400 Core 11 | 9 . . 1 1 . Treads 2889 | 37 540 664 1648 . . Legs 1403 | . . . . 3 1400 Wheels 881 | . . . 791 90 . Hover . | . . . . . . Flight . | . . . . . . Fastest Speed 50 | 50 160 160 110 120 260 Average Speed 194 | 145 160 163 151 130 301 Slowest Speed 700 | 160 160 165 700 650 330 Overloaded Moves . | . . . . . . Propulsion Burnouts . | . . . . . . Robots Hopped . | . . . . . . Cave-ins Triggered . | . . . . . . Exploration Rate (%) 65 | 4 90 93 95 20 89 Regions Visited 5 Branch Regions 4 Pre-discovered Areas 4 | . . 1 1 . 2 Known Exits Taken . | . . . . . . Unknown Exits Taken 5 | 1 1 1 1 1 . Scrap Searched 14 | . . 2 5 . 7 Spaces Dug 21 | . 4 . 17 . . Terrain Destroyed 79 | . 4 . 75 . . Melee 17 | . . . 17 . . Projectile 5 | . 4 . 1 . . AOE 57 | . . . 57 . . Terrain Rammed . | . . . . . . Walls Destroyed . | . . . . . . Machines Disabled . | . . . . . . Actions | -11 -10 -10 -10 -8 -8 --------- Run | Yrd Mat Min Sub Rec Scr Total 5647 | 59 638 758 2695 94 1403 Wait 123 | 2 33 55 33 . . Move 5179 | 45 539 663 2439 93 1400 Hop . | . . . . . . Pick Up 34 | 1 6 16 11 . . Fast Attach 13 | 7 . . 5 1 . Attach 5 | . 2 . 3 . . Detach . | . . . . . . Swap 61 | 1 5 6 47 . 2 Drop 26 | . 1 13 11 . 1 Fire 141 | 3 50 5 83 . . Melee 63 | . . . 63 . . Ram . | . . . . . . Kick . | . . . . . . Crush 2 | . 2 . . . . Escape Stasis . | . . . . . . Rewire . | . . . . . . Trap . | . . . . . . Miscellaneous . | . . . . . . Route ------- -11/Scrapyard -10/Materials (discovered 4 exits: [*Mat x2] / *Min x2) -10/Mines (discovered 3 exits: [*Mat] / [*Exi] / *Sub) -10/Subcaves (discovered 3 exits: [*Mat x2] / [*Rec]) -8/Recycling -8/Scraptown (discovered 1 exit: [*Fac]) History --------- Turn | Location | Event 15 | -11/Scrapyard | Discovered new exit (range 15) 91 | -11/Scrapyard | Entered Materials 245 | -10/Materials | Discovered new exit (range 7) 308 | -10/Materials | Build established: Mutant 351 | -10/Materials | Discovered new exit (range 16) 468 | -10/Materials | Discovered new exit (range 13) 812 | -10/Materials | Discovered new exit (range 16) 1133 | -10/Materials | Entered Mines 1153 | -10/Mines | A weapon hastily lodged in a ceiling crevice suddenly fell to the ground 1174 | -10/Mines | Met a Derelict bent on vengeance 1286 | -10/Mines | Received a Rocket Launcher from a helpful Derelict 1519 | -10/Mines | Met a Derelict shopkeep closing up shop 1745 | -10/Mines | Discovered new exit (range 9) 1912 | -10/Mines | Joined a pair of Derelicts in attacking an 0b10 outpost 2125 | -10/Mines | Learned 2 Materials zone layouts 2128 | -10/Mines | Learned location of Storage (-8) 2158 | -10/Mines | Deemed a non-threat by the Exiles lab entrance 2160 | -10/Mines | Discovered new exit (range 5) 2289 | -10/Mines | Discovered new exit (range 9) 2313 | -10/Mines | Entered Subcaves 2323 | -10/Subcaves | Discovered new exit (range 11) 2402 | -10/Subcaves | Shifting Twisted Machinery released Battle Cannon 2494 | -10/Subcaves | Disturbed a concealed Subdweller 2494 | -10/Subcaves | Ambushed by Subdweller buried in earth 2616 | -10/Subcaves | Shifting Twisted Machinery released Battle Cannon 2963 | -10/Subcaves | Visited 4L-MR0's lab 2980 | -10/Subcaves | Found Gun Armor 3265 | -10/Subcaves | Shifting Twisted Machinery released Barrage Gun 3388 | -10/Subcaves | Core integrity fell below 50% 3534 | -10/Subcaves | Learned Materials stockpile data 5358 | -10/Subcaves | Core integrity fell below 20% 5488 | -10/Subcaves | Lost 3 parts (1p2n) 5664 | -10/Subcaves | A swath of the cavern ceiling suddenly collapsed 5710 | -10/Subcaves | Shifting Twisted Machinery released Sub. Shrapnel Launcher 5729 | -10/Subcaves | Shifting Twisted Machinery released Battle Rifle 5729 | -10/Subcaves | Build established: Scavenger-Mutant 5886 | -10/Subcaves | Discovered new exit (range 13) 5887 | -10/Subcaves | Visited Clippyterm 5891 | -10/Subcaves | Learned Factory emergency access door positions 6478 | -10/Subcaves | Discovered new exit (range 10) 6509 | -10/Subcaves | Entered Recycling 6590 | -8/Recycling | Scanned before Scraplab entrance 6608 | -8/Recycling | Entered Scraplab 6619 | -8/Recycling | Discovered new exit (range 3) 6631 | -8/Recycling | Entered Scraptown 6778 | -8/Scraptown | Build established: Mutant 7055 | -8/Scraptown | Heard Great Nut preacher, LISTEN AND RECITE! 7141 | -8/Scraptown | Scanned Subdweller tech in exchange for log data 7149 | -8/Scraptown | Learned location of Testing (-2) 7151 | -8/Scraptown | Learned location of Quarantine (-3) 7261 | -8/Scraptown | Visited Comm Corps 7782 | -8/Scraptown | Visited Cave Peace 7894 | -8/Scraptown | Visited The Evicted 8024 | -8/Scraptown | Visited Bundlers 8205 | -8/Scraptown | Visited Cyclists 8357 | -8/Scraptown | Visited Supply Room 8417 | -8/Scraptown | Visited SPCMW 8575 | -8/Scraptown | Visited UFD Registry 8575 | -8/Scraptown | Registered with UFD as "Nukecoil" 8747 | -8/Scraptown | Discovered new exit (range 13) 8852 | -8/Scraptown | Guru changed UFD alias to "Smoothskull" 9189 | -8/Scraptown | Visited Analyses Database 9275 | -8/Scraptown | Visited Scrap Suit Storage 9347 | -8/Scraptown | Visited LU-1G1's Boring Crew 9935 | -8/Scraptown | Visited Derelict Rescue Squad 10109 | -8/Scraptown | Visited Junk Repository 10202 | -8/Scraptown | Visited Abandonware Association 10228 | -8/Scraptown | Learned abandonware demo "OVRCLOCK.EXE" 10245 | -8/Scraptown | Learned abandonware demo "POISON.EXE" 10347 | -8/Scraptown | Visited Scrapoid Research Area 10433 | -8/Scraptown | Visited Scrapoid Pod Storage 10760 | -8/Scraptown | Visited Curators Association 10852 | -8/Scraptown | Self-destructed Last Messages --------------- DATA::[DELETED] R6-MRW(p): We mustn't let anyone know our full and true capabilities, so we can only share a small sampling of our collection here. ARMAGDDN.EXE? Never heard of it. 10347_ LOCAL NARROWCAST: Scrapoid Research Area. 10419_ WE-W3F(p) scrutinizes some mainframe outputs. 10433_ LOCAL NARROWCAST: Scrapoid Pod Storage. 10458_ WE-W3F(p) scrutinizes some mainframe outputs. 10567_ 7N-OAP(c): "Come one, come all! See for yourself a fine selection of the many wondrous pieces in our collection!" TQ-HIE(E): I've seen the Curators put their Vampiric Humpback on display before. Who in their right mind would use such a thing? 10760_ LOCAL NARROWCAST: Curators Association. Welcome to the latest exhibit, look but don't touch. 10808_ 7N-OAP(c): "Come one, come all! See for yourself a fine selection of the many wondrous pieces in our collection!" Map ----- +----------------------------------------------------+ | | | | | | | | | | | | | | | | | | | ?????????????????????????????????????????????????? | | ?????????????????????????????????????????????????? | | ?????????????????????????????????????????????????? | | ?????????????????????????????????????????????????? | | ?????????????????????????????????????????????????? | | ?????????????????????????????????????????????????? | | ?????????????????????????????????????????????????? | | ?????????????????????????????????????????????????? | | ?????????????????????????????????????????????????? | | ?????????????????????????????????????????????????? | | ?????????????????????????????????????????????????? | | ?????????????????????????????????????????????????? | | ?????????????????????????????????????????????????? | | ???????????????????????####??????????????????????? | | ??????????????????????##EE##????????#????????????? | | ???????????"" ##!!"#### ###### ##???????????? | | ?????????? @ E#???????????? | | ?????????? j E#???????????? | | ?????????????########## ###########???????????? | | ??????????????????????## ##?????????????????????? | | ????#########??????????# #??????????????????????? | | ??# """""#??????????# #?????#?"#?????????????? | | ??# " " " ############ #??? "!" ###???????????? | | ??#""" #"""""""""## #??? """ "???????????? | | ??#""" # " " " ## ##"" ""#???????????? | | ??#""" " # ## ##!" "=#???????????? | | ??# " """# "# #" ## ##"" ""##??????????? | | ??# """# "#X#" ## g#" "???????????? | | ??#"" """# "###" ## ##"" ""#???????????? | | ??#" " # """"" ## ##=" "&#???????????? | | ??#" # ## ##"" ""#???????????? | | ??# # ## #" "#??????????? | | ??#### ########### ##### ## #########???????????? | | ###### ########### ##### ## #########???????????? | | """""" """"""""""" """"" "" "## =!#???????????? | | "## = #???????????? | | "## ####???????????? | | "## ]#???????????? | | "## [!#???????????? | | ]#???????????? | | """""""""""""""""""""""" "## ####???????????? | +----------------------------------------------------+ Best States ------------- Heat Dissipation 25 Energy Generation 18 Energy Capacity 250 Matter Stores 300 Matter Capacity 300 Sight Range 16 Terrain Scan Density 10 Armor Coverage 225 Propulsion Shielding 33 Evasion (%) 40 Recoil Reduction 2 Item Schematics ----------------- None Robot Schematics ------------------ None Fabricated ------------ Nothing Alien Tech Used ----------------- None Achievements -------------- None Challenges ------------ None Game ------ Seed WeaponsSpliceReactor Manual? 0 Play Time 00:38:46 Cumulative 144.5 hours Start 2024.08.27 @ 21:34:47 End 2024.08.27 @ 22:13:13 Sessions 1 Manual Loads 0 Difficulty Rogue Special Mode None Game No. 115 Rogue 115 Adventurer 0 Explorer 0 Win Type - Total 0 Types 0/0/0/0/0/0/0/0/0 Lore% 59 Gallery% 64 Achievement% 48 Wizard Run 0 Options --------- Layout 2 ASCII 0 Keyboard 1 Movement Vi Keybinds 0 Fullscreen 1 Font 32/SmallcapsGlow Map View 77x44 Zoom Use 0% Tactical HUD 1 Map Filters NONE Filters NONE Steam 1 RUN: bc3fbf43-dfa1-4e40-bf26-01ba5e229f34